{"text_format":"1","workbook":"xlsx","n_sheets":8,"sheets":["実績報告書→","第4号様式_実績報告書","別紙","（参考）領収書等貼付用紙","（参考）都道府県番号・点数表番号一覧","記載例→","第4号様式_実績報告書 (記載例)","別紙 (記載例)"],"not_rendered":{"charts":0,"images":0,"macros":1,"external_links":1,"defined_names":186,"comments":3,"pivot_tables":0},"unopened":[],"bounds":{"document_bytes":16777216,"sheet_cells":100000,"rows_first":2000,"rows_last":500,"rows_between":2000,"halvings":0,"cell_chars":16384,"cell_head_chars":4096},"cells_cut":0,"cells_raw":0,"read":"whole","date_system":"1900"}

{"sheet":"実績報告書→","index":0,"n_rows":0,"n_cols":0,"rows_kept":0,"cut":false,"hidden":false,"merged":[]}

{"sheet":"第4号様式_実績報告書","index":1,"n_rows":29,"n_cols":9,"rows_kept":29,"cut":false,"hidden":false,"merged":[[28,1,28,7],[16,0,17,8],[24,0,24,8],[4,7,4,8],[22,3,22,6],[27,1,27,7]]}
[]
["第４号様式"]
[]
[]
[null,null,null,null,null,null,null,{"$f":"IF(別紙!D4=0,\"申請日（自動表示）\",別紙!D4)","v":"申請日（自動表示）"}]
[]
[]
["厚生労働大臣　殿"]
[]
[]
[null,null,null,null,null,null,null,null,{"$f":"別紙!L19&別紙!P19","v":""}]
[null,null,null,null,null,null,null,null,{"$f":"別紙!Q9","v":0}]
[null,null,null,null,null,null,null,null,{"$f":"別紙!D12&\"　\"&別紙!M12","v":"　"}]
[]
[]
[]
["「令和２年度新型コロナウイルス感染症感染拡大防止・医療提供体制確保支援補助金」の実績報告書"]
[]
[]
["　標記について、次のとおり交付されるよう関係書類を添えて報告する。"]
[]
[]
["１　国庫補助精算額",null,null,{"$f":"IF(別紙!V40=0,\"金（申請額 自動表示）円\",別紙!V40)","v":"金（申請額 自動表示）円"}]
[]
["２　実績報告書（別紙）"]
[]
["３　添付書類"]
[null,"・本事業の交付決定通知（写し）"]
[null,"・領収書等の支出が確認できる書類（領収書等貼付用紙）"]

{"sheet":"別紙","index":2,"n_rows":48,"n_cols":30,"rows_kept":48,"cut":false,"hidden":false,"merged":[[26,6,26,20],[47,1,47,20],[47,21,47,22],[47,23,47,29],[45,1,45,20],[43,23,43,29],[45,23,45,29],[43,21,43,22],[43,1,43,20],[45,21,45,22],[38,21,38,28],[27,25,36,28],[28,21,28,24],[29,21,29,24],[31,21,31,24],[32,21,32,24],[4,20,6,28],[1,0,1,29],[8,0,9,2],[8,3,9,3],[8,4,9,4],[8,5,9,5],[8,10,9,10],[8,11,9,11],[8,12,9,12],[8,13,9,15],[8,16,9,29],[3,7,3,15],[8,6,9,6],[8,7,9,7],[3,0,3,2],[3,3,3,6],[8,8,9,8],[8,9,9,9],[11,12,12,17],[20,15,20,29],[17,0,18,2],[15,13,15,17],[15,18,15,29],[11,0,12,2],[11,9,12,11],[11,3,12,8],[14,0,15,2],[14,3,14,7],[14,8,14,12],[14,13,14,17],[17,15,17,29],[18,15,18,29],[14,18,14,29],[17,11,17,14],[38,1,38,20],[33,6,33,20],[31,6,31,20],[24,5,24,8],[17,3,17,10],[20,0,20,8],[20,9,20,14],[27,6,27,20],[24,13,24,16],[18,11,18,14],[37,21,37,24],[37,25,37,28],[15,3,15,7],[15,8,15,12],[24,9,24,12],[24,1,24,4],[26,25,26,28],[26,21,26,24],[27,21,27,24],[24,17,24,22],[22,23,24,29],[27,1,36,2],[26,1,26,2],[26,3,26,5],[27,3,27,5],[28,3,28,5],[29,3,29,5],[30,3,30,5],[31,3,31,5],[32,3,32,5],[41,0,41,29],[32,6,32,20],[35,21,35,24],[36,21,36,24],[39,21,39,28],[28,6,28,20],[29,6,29,20],[30,6,30,20],[39,1,39,20],[34,6,34,20],[35,6,35,20],[33,3,33,5],[34,3,34,5],[35,3,35,5],[36,3,36,20],[30,21,30,24],[37,3,37,20],[37,1,37,2],[33,21,33,24],[34,21,34,24]]}
["別紙"]
["実績報告書（別紙）_令和２年度新型コロナウイルス感染症感染拡大防止・医療提供体制確保支援補助金"]
[]
["提出日",null,null,null,null,null,null,"（入力形式）　西暦４桁 / 月 / 日　　半角、スラッシュ区切り\n（表示は、元号表示になります）",null,null,null,null,null,null,null,null,null,null,null,null,null,null,null,null,null,null,null,null,null,"＜令和２年度用＞"]
[null,null,null,null,null,null,null,null,null,null,null,null,null,null,null,null,null,null,null,null,{"$f":"IF((COUNTBLANK(D4)+COUNTBLANK(D9:M9)+COUNTBLANK(Q9)+COUNTBLANK(D12)+COUNTBLANK(M12)+COUNTBLANK(D16)+COUNTBLANK(I16)+COUNTBLANK(N16)+COUNTBLANK(S16)+COUNTBLANK(D19:F19)+COUNTBLANK(H19:K19)+COUNTBLANK(L19)+COUNTBLANK(P19)+COUNTBLANK(J21)+COUNTBLANK(F25)+COUNTBLANK(N25)+COUNTBLANK(G28:G36)+COUNTBLANK(V28:V36)+COUNTBLANK(Z38)+COUNTBLANK(V44)+COUNTBLANK(V46)+COUNTBLANK(V48))<>0,\"未入力の項目があります。\",\"\")","v":"未入力の項目があります。"}]
["Ⅰ. 基本情報"]
["(1)施設概要"]
[null,null,null,"助産所コードを有さない助産所は「9999999999」を入力してください"]
["医療機関等\nコード（10桁）",null,null,null,null,null,null,null,null,null,null,null,null,"施設名称"]
[]
[]
["代表者職名",null,null,null,null,null,null,null,null,"代表者氏名"]
[]
[]
["連絡先",null,null,"担当部署",null,null,null,null,"担当者氏名",null,null,null,null,"連絡先電話番号",null,null,null,null,"連絡先メールアドレス"]
[]
[]
["所在地",null,null,"郵便番号",null,null,null,null,null,null,null,"都道府県",null,null,null,"市区町村以降"]
[null,null,null,null,null,null,"-"]
[]
["a_交付決定額（円）",null,null,null,null,null,null,null,null,null,null,null,null,null,null,"本補助金の交付決定通知に記載された、交付決定額をご記載ください\n提出時には、必ず本事業の交付決定通知（写し）を添付してください"]
[]
["Ⅱ. 報告内容　　本事業により支出した内容・金額を下記の支出科目ごとに記載して下さい。",null,null,null,null,null,null,null,null,null,null,null,null,null,null,null,null,null,null,null,null,null,null,{"$f":"IF(F25=\"\",\"\",IF(N25=\"\",\"\",IF(OR(F25<44180,F25>44286),\"事業開始日が対象期間外です\"&CHAR(10)&\"令和2年12月15日～令和3年3月31日\",IF(OR(N25<44180,N25>44286),\"事業終了日が対象期間外です\"&CHAR(10)&\"令和2年12月15日～令和3年3月31日\",IF(F25>N25,\"事業開始日が事業終了日よりも\"&CHAR(10)&\"後の日付になってます\",\"\")))))","v":""}]
[]
[null,"事業開始日",null,null,null,null,null,null,null,"事業終了日",null,null,null,null,null,null,null,"（入力形式）　西暦４桁 / 月 / 日　　半角、スラッシュ区切り\n（表示は、元号表示になります）"]
[]
[null,null,null,"科目",null,null,"内容　（各科目の内容を30字程度で記入ください。支出のない科目には「なし」と記入してください。）",null,null,null,null,null,null,null,null,null,null,null,null,null,null,"支出額（円）",null,null,null,"収入額（円）"]
[null,"支出",null,"賃金・報酬"]
[null,null,null,"謝金"]
[null,null,null,"会議費"]
[null,null,null,"旅費"]
[null,null,null,"需用費"]
[null,null,null,"役務費"]
[null,null,null,"委託料"]
[null,null,null,"使用料及び賃借料"]
[null,null,null,"備品購入費"]
[null,null,null,"b_合計支出額（総事業費）",null,null,null,null,null,null,null,null,null,null,null,null,null,null,null,null,null,{"$f":"SUM(V28:V36)","v":0}]
[null,"収入",null,"c_上記支出に対する本補助金以外の寄付金・その他の収入"]
[null,"d_合計支出額-収入額（円）　（b-c）",null,null,null,null,null,null,null,null,null,null,null,null,null,null,null,null,null,null,null,{"$f":"IF(V37-Z38>0,V37-Z38,0)","v":0}]
[null,"補助精算額（円）（a又はdのいずれか少ない額)　　　【1000円未満切捨】",null,null,null,null,null,null,null,null,null,null,null,null,null,null,null,null,null,null,null,{"$f":"ROUNDDOWN(IF(J21<V39,J21,V39),-3)","v":0}]
[]
["Ⅳ.  確認事項\n　報告内容に補助の対象にならない経費が含まれている場合や他補助金の報告内容等に関する都道府県への確認について同意されない場合は補助できませんので、ご確認ください。"]
[]
[null,"上記「賃金・報酬」に従前から勤務している者及び通常の医療の提供を行う者に係る人件費は含まれていない",null,null,null,null,null,null,null,null,null,null,null,null,null,null,null,null,null,null,null,null,null,"従前から勤務している者及び通常の医療の提供を行う者に係る人件費は、本事業の補助対象外です。"]
[]
[null,"上記「支出額」に、令和２年度二次補正予算の「新型コロナウイルス感染症を疑う患者受入れのための救急･周産期・小児医療体制確保事業」や「医療機関・薬局等における感染拡大防止等支援事業」、「令和2年度インフルエンザ流行期における新型コロナウイルス感染症疑い患者を受け入れる救急・周産期・小児医療機関体制確保事業」等、他の補助金と対象経費が重複するものは含まれていない。",null,null,null,null,null,null,null,null,null,null,null,null,null,null,null,null,null,null,null,null,null,"二次補正予算の「新型コロナ疑い患者受入れのための救急・周産期・小児医療体制確保事業」や「医療機関・薬局等における感染拡大防止等支援事業」等、他の補助金と重複する経費は本事業の補助対象外です。"]
[]
[null,"本事業の申請書、実績報告書等の審査・確認過程で、令和２年度二次補正予算の「新型コロナウイルス感染症を疑う患者受入れのための救急･周産期・小児医療体制確保事業」や「医療機関・薬局等における感染拡大防止等支援事業」の申請書、実績報告書等の内容を、必要に応じて国から都道府県に確認することがあることに同意する。",null,null,null,null,null,null,null,null,null,null,null,null,null,null,null,null,null,null,null,null,null,"必要に応じて、他の補助金と重複する経費がないか等を確認させていただきます。同意いただけない場合は、本事業の補助を受けることはできません。なお、入手した情報は本事業の審査・確認以外の目的で使用することはございません。"]

{"sheet":"（参考）領収書等貼付用紙","index":3,"n_rows":14,"n_cols":20,"rows_kept":14,"cut":false,"hidden":false,"merged":[[1,0,1,29],[3,0,4,2],[3,3,4,3],[3,4,4,4],[3,5,4,5],[3,12,4,12],[3,13,4,15],[3,16,4,29],[3,6,4,6],[3,7,4,7],[3,8,4,8],[3,9,4,9],[3,10,4,10],[3,11,4,11],[6,0,6,4],[6,5,6,7],[6,9,6,13],[6,14,6,16],[8,1,8,28]]}
["参考様式"]
["領収書等貼付用紙_令和２年度新型コロナウイルス感染症感染拡大防止・医療提供体制確保支援補助金"]
[]
["医療機関等\nコード（10桁）",null,null,{"$f":"IF(別紙!D9=\"\",\"\",別紙!D9)","v":""},{"$f":"IF(別紙!E9=\"\",\"\",別紙!E9)","v":""},{"$f":"IF(別紙!F9=\"\",\"\",別紙!F9)","v":""},{"$f":"IF(別紙!G9=\"\",\"\",別紙!G9)","v":""},{"$f":"IF(別紙!H9=\"\",\"\",別紙!H9)","v":""},{"$f":"IF(別紙!I9=\"\",\"\",別紙!I9)","v":""},{"$f":"IF(別紙!J9=\"\",\"\",別紙!J9)","v":""},{"$f":"IF(別紙!K9=\"\",\"\",別紙!K9)","v":""},{"$f":"IF(別紙!L9=\"\",\"\",別紙!L9)","v":""},{"$f":"IF(別紙!M9=\"\",\"\",別紙!M9)","v":""},"施設名称",null,null,{"$f":"IF(別紙!Q9=\"\",\"\",別紙!Q9)","v":""}]
[]
[]
["補助精算額\n（交付申請書（別紙）からの転記）",null,null,null,null,{"$f":"IF(別紙!V40=\"\",\"\",別紙!V40)","v":0},null,null,null,"領収書等の合計額",null,null,null,null,null,null,null,null,{"$f":"IF(O7<F7,\"領収書等の合計額が補助申請額より少ない額です。ご確認ください。\",\"\")","v":""}]
[]
[null,"実績報告書（別紙）のⅡ.報告内容に記載した支出額について、領収書（写し）等の証拠書類を添付してください。\n領収書等の合計額を入力した後に、本用紙を印刷していただき、対象期間（令和２年12月15日から令和３年３月31日）に、支出した額がわかる書類（領収書等）の写しを貼付して下さい。\n領収書等（写し）を本用紙1枚に貼付しきれない場合は、本用紙を複数枚印刷して、領収書（写し）を貼付してください。\nA4サイズ以上の領収書等について、本用紙に貼付するのではなく、クリップなどでまとめて添付してください。"]
[]
["（領収書（写し）は、こちらの線より下に貼付してください。　※記載されている貼付例や注意事項と重ねて貼付しても差し支えありません。）"]
[]
["貼付例"]
[null,"・領収書の一部が補助対象の場合",null,null,null,null,null,null,null,"・一部補助対象期間以外の費用も含んでいる場合",null,null,null,null,null,null,null,null,null,"・領収書が発行されない場合"]

{"sheet":"（参考）都道府県番号・点数表番号一覧","index":4,"n_rows":29,"n_cols":6,"rows_kept":29,"cut":false,"hidden":false,"merged":[]}
[]
["（参考）医療機関等コードにおける都道府県番号一覧及び点数表番号一覧"]
[]
["都道府県番号一覧"]
["都道府県","コード","都道府県","コード","都道府県","コード"]
["北海道",1,"石川県",17,"岡山県",33]
["青森県",2,"福井県",18,"広島県",34]
["岩手県",3,"山梨県",19,"山口県",35]
["宮城県",4,"長野県",20,"徳島県",36]
["秋田県",5,"岐阜県",21,"香川県",37]
["山形県",6,"静岡県",22,"愛媛県",38]
["福島県",7,"愛知県",23,"高知県",39]
["茨城県",8,"三重県",24,"福岡県",40]
["栃木県",9,"滋賀県",25,"佐賀県",41]
["群馬県",10,"京都府",26,"長崎県",42]
["埼玉県",11,"大阪府",27,"熊本県",43]
["千葉県",12,"兵庫県",28,"大分県",44]
["東京都",13,"奈良県",29,"宮崎県",45]
["神奈川県",14,"和歌山県",30,"鹿児島県",46]
["新潟県",15,"鳥取県",31,"沖縄県",47]
["富山県",16,"島根県",32]
[]
["点数表番号一覧"]
["点数表","コード"]
["助産所",0]
["医科",1]
["歯科",3]
["調剤",4]
["訪問看護",6]

{"sheet":"記載例→","index":5,"n_rows":0,"n_cols":0,"rows_kept":0,"cut":false,"hidden":false,"merged":[]}

{"sheet":"第4号様式_実績報告書 (記載例)","index":6,"n_rows":29,"n_cols":9,"rows_kept":29,"cut":false,"hidden":false,"merged":[[4,7,4,8],[16,0,17,8],[22,3,22,6],[24,0,24,8],[27,1,27,7]]}
[]
["第４号様式"]
[]
[null,null,null,null,null,null,null,null,"医第○○-○号"]
[null,null,null,null,null,null,null,"2021-04-10"]
[]
[]
["厚生労働大臣　殿"]
[]
[]
[null,null,null,null,null,null,null,null,"東京都千代田区霞が関○○○"]
[null,null,null,null,null,null,null,null,"○○病院"]
[null,null,null,null,null,null,null,null,"院長　○○○"]
[]
[]
[]
["「令和２年度新型コロナウイルス感染症感染拡大防止・医療提供体制確保支援補助金」の実績報告書"]
[]
[]
["　標記について、次のとおり交付されるよう関係書類を添えて報告する。"]
[]
[]
["１　国庫補助精算額",null,null,3789000]
[]
["２　実績報告書（別紙）"]
[]
["２　添付書類"]
[null,"・本事業の交付決定通知（写し）"]
[null,"・領収書等の支出が確認できる書類（領収書等貼付用紙）"]

{"sheet":"別紙 (記載例)","index":7,"n_rows":48,"n_cols":30,"rows_kept":48,"cut":false,"hidden":false,"merged":[[8,16,9,29],[1,0,1,29],[3,0,3,2],[3,3,3,6],[3,7,3,15],[4,20,6,28],[11,0,12,2],[11,3,12,8],[11,9,12,11],[11,12,12,17],[8,7,9,7],[8,8,9,8],[8,9,9,9],[8,10,9,10],[8,11,9,11],[8,12,9,12],[8,0,9,2],[8,3,9,3],[8,4,9,4],[8,5,9,5],[8,6,9,6],[8,13,9,15],[14,0,15,2],[14,3,14,7],[14,8,14,12],[14,13,14,17],[14,18,14,29],[15,3,15,7],[15,8,15,12],[15,13,15,17],[15,18,15,29],[17,0,18,2],[17,3,17,10],[17,11,17,14],[17,15,17,29],[18,11,18,14],[18,15,18,29],[20,0,20,8],[20,9,20,14],[20,15,20,29],[22,23,24,29],[24,1,24,4],[24,5,24,8],[24,9,24,12],[24,13,24,16],[24,17,24,22],[26,1,26,2],[26,3,26,5],[26,6,26,20],[26,21,26,24],[26,25,26,28],[28,3,28,5],[28,6,28,20],[28,21,28,24],[29,3,29,5],[29,6,29,20],[29,21,29,24],[38,1,38,20],[38,21,38,28],[34,3,34,5],[34,6,34,20],[34,21,34,24],[35,3,35,5],[35,6,35,20],[35,21,35,24],[37,25,37,28],[27,1,36,2],[27,3,27,5],[27,6,27,20],[27,21,27,24],[27,25,36,28],[32,3,32,5],[32,6,32,20],[32,21,32,24],[33,3,33,5],[33,6,33,20],[33,21,33,24],[30,3,30,5],[30,6,30,20],[30,21,30,24],[31,3,31,5],[31,6,31,20],[31,21,31,24],[36,3,36,20],[36,21,36,24],[37,1,37,2],[37,3,37,20],[37,21,37,24],[47,1,47,20],[47,21,47,22],[47,23,47,29],[39,1,39,20],[39,21,39,28],[41,0,41,29],[45,1,45,20],[45,21,45,22],[45,23,45,29],[43,1,43,20],[43,21,43,22],[43,23,43,29]]}
["別紙"]
["実績報告書（別紙）_令和２年度新型コロナウイルス感染症感染拡大防止・医療提供体制確保支援補助金"]
[]
["提出日",null,null,"2021-04-01",null,null,null,"（入力形式）　西暦４桁 / 月 / 日　　半角、スラッシュ区切り\n（表示は、元号表示になります）",null,null,null,null,null,null,null,null,null,null,null,null,null,null,null,null,null,null,null,null,null,"＜令和２年度用＞"]
[null,null,null,null,null,null,null,null,null,null,null,null,null,null,null,null,null,null,null,null,{"$f":"IF((COUNTBLANK(D4)+COUNTBLANK(D9:M9)+COUNTBLANK(Q9)+COUNTBLANK(D12)+COUNTBLANK(M12)+COUNTBLANK(D16)+COUNTBLANK(I16)+COUNTBLANK(N16)+COUNTBLANK(S16)+COUNTBLANK(D19:F19)+COUNTBLANK(H19:K19)+COUNTBLANK(L19)+COUNTBLANK(P19)+COUNTBLANK(J21)+COUNTBLANK(F25)+COUNTBLANK(N25)+COUNTBLANK(G28:G36)+COUNTBLANK(V28:V36)+COUNTBLANK(Z38)+COUNTBLANK(V44)+COUNTBLANK(V46)+COUNTBLANK(V48))<>0,\"未入力の項目があります。\",\"\")","v":"未入力の項目があります。"}]
["Ⅰ. 基本情報"]
["(1)施設概要"]
[null,null,null,"助産所コードを有さない助産所は「9999999999」を入力してください"]
["医療機関等\nコード（10桁）",null,null,null,0,0,0,0,0,0,0,0,0,"施設名称",null,null,"○○病院"]
[]
[]
["代表者職名",null,null,"院長",null,null,null,null,null,"代表者氏名",null,null,"○○○"]
[]
[]
["連絡先",null,null,"担当部署",null,null,null,null,"担当者氏名",null,null,null,null,"連絡先電話番号",null,null,null,null,"連絡先メールアドレス"]
[null,null,null,"△△",null,null,null,null,"○△○",null,null,null,null,"00-0000-0000",null,null,null,null,"＠＠＠＠＠＠＠"]
[]
["所在地",null,null,"郵便番号",null,null,null,null,null,null,null,"都道府県",null,null,null,"市区町村以降"]
[null,null,null,1,2,3,"-",4,5,6,7,"東京都",null,null,null,"千代田区霞が関○○○"]
[]
["a_交付決定額（円）",null,null,null,null,null,null,null,null,4500000,null,null,null,null,null,"本補助金の交付決定通知に記載された、交付決定額をご記載ください\n提出時には、必ず本事業の交付決定通知（写し）を添付してください"]
[]
["Ⅱ. 報告内容　　本事業により支出した内容・金額を下記の支出科目ごとに記載して下さい。",null,null,null,null,null,null,null,null,null,null,null,null,null,null,null,null,null,null,null,null,null,null,{"$f":"IF(F25=\"\",\"\",IF(N25=\"\",\"\",IF(OR(F25<44180,F25>44286),\"事業開始日が対象期間外です\"&CHAR(10)&\"令和2年12月15日～令和3年3月31日\",IF(OR(N25<44180,N25>44286),\"事業終了日が対象期間外です\"&CHAR(10)&\"令和2年12月15日～令和3年3月31日\",IF(F25>N25,\"事業開始日が事業終了日よりも\"&CHAR(10)&\"後の日付になってます\",\"\")))))","v":"事業開始日が事業終了日よりも\n後の日付になってます"}]
[]
[null,"事業開始日",null,null,null,"2021-03-15",null,null,null,"事業終了日",null,null,null,"2021-01-03",null,null,null,"（入力形式）　西暦４桁 / 月 / 日　　半角、スラッシュ区切り\n（表示は、元号表示になります）"]
[]
[null,null,null,"科目",null,null,"内容　（各科目の内容を30字程度で記入ください。支出のない科目には「なし」と記入してください。）",null,null,null,null,null,null,null,null,null,null,null,null,null,null,"支出額（円）",null,null,null,"収入額（円）"]
[null,"支出",null,"賃金・報酬",null,null,"臨時職員の給与",null,null,null,null,null,null,null,null,null,null,null,null,null,null,234000]
[null,null,null,"謝金",null,null,"勉強会の講師謝金",null,null,null,null,null,null,null,null,null,null,null,null,null,null,200000]
[null,null,null,"会議費",null,null,"勉強会の会場費など",null,null,null,null,null,null,null,null,null,null,null,null,null,null,120000]
[null,null,null,"旅費",null,null,"医師の派遣の旅費",null,null,null,null,null,null,null,null,null,null,null,null,null,null,30000]
[null,null,null,"需用費",null,null,"職員用マスク",null,null,null,null,null,null,null,null,null,null,null,null,null,null,350000]
[null,null,null,"役務費",null,null,"なし",null,null,null,null,null,null,null,null,null,null,null,null,null,null,0]
[null,null,null,"委託料",null,null,"清掃委託",null,null,null,null,null,null,null,null,null,null,null,null,null,null,2000000]
[null,null,null,"使用料及び賃借料",null,null,"なし",null,null,null,null,null,null,null,null,null,null,null,null,null,null,0]
[null,null,null,"備品購入費",null,null,"空気清浄機、エアコン",null,null,null,null,null,null,null,null,null,null,null,null,null,null,855500]
[null,null,null,"b_合計支出額（総事業費）",null,null,null,null,null,null,null,null,null,null,null,null,null,null,null,null,null,{"$f":"SUM(V28:V36)","v":3789500}]
[null,"収入",null,"c_上記支出に対する本補助金以外の寄付金・その他の収入",null,null,null,null,null,null,null,null,null,null,null,null,null,null,null,null,null,null,null,null,null,0]
[null,"d_合計支出額-収入額（円）　（b-c）",null,null,null,null,null,null,null,null,null,null,null,null,null,null,null,null,null,null,null,{"$f":"V37-Z38","v":3789500}]
[null,"補助精算額（円）（a又はdのいずれか少ない額)　　　【1000円未満切捨】",null,null,null,null,null,null,null,null,null,null,null,null,null,null,null,null,null,null,null,{"$f":"ROUNDDOWN(IF(J21<V39,J21,V39),-3)","v":3789000}]
[]
["Ⅳ.  確認事項\n　報告内容に補助の対象にならない経費が含まれている場合や他補助金の報告内容等に関する都道府県への確認について同意されない場合は補助できませんので、ご確認ください。"]
[]
[null,"上記「賃金・報酬」に従前から勤務している者及び通常の医療の提供を行う者に係る人件費は含まれていない",null,null,null,null,null,null,null,null,null,null,null,null,null,null,null,null,null,null,null,"はい",null,"従前から勤務している者及び通常の医療の提供を行う者に係る人件費は、本事業の補助対象外です。"]
[]
[null,"上記「支出額」に、令和２年度二次補正予算の「新型コロナウイルス感染症を疑う患者受入れのための救急･周産期・小児医療体制確保事業」や「医療機関・薬局等における感染拡大防止等支援事業」、「令和2年度インフルエンザ流行期における新型コロナウイルス感染症疑い患者を受け入れる救急・周産期・小児医療機関体制確保事業」等、他の補助金と対象経費が重複するものは含まれていない。",null,null,null,null,null,null,null,null,null,null,null,null,null,null,null,null,null,null,null,"はい",null,"二次補正予算の「新型コロナ疑い患者受入れのための救急・周産期・小児医療体制確保事業」や「医療機関・薬局等における感染拡大防止等支援事業」等、他の補助金と重複する経費は本事業の補助対象外です。"]
[]
[null,"本事業の申請書、実績報告書等の審査・確認過程で、令和２年度二次補正予算の「新型コロナウイルス感染症を疑う患者受入れのための救急･周産期・小児医療体制確保事業」や「医療機関・薬局等における感染拡大防止等支援事業」の申請書、実績報告書等の内容を、必要に応じて国から都道府県に確認することがあることに同意する。",null,null,null,null,null,null,null,null,null,null,null,null,null,null,null,null,null,null,null,"はい",null,"必要に応じて、他の補助金と重複する経費がないか等を確認させていただきます。同意いただけない場合は、本事業の補助を受けることはできません。なお、入手した情報は本事業の審査・確認以外の目的で使用することはございません。"]